bitfinex-derivatives/quotes_BTCF0:USTF0_20251206
["timestamp","ask_amount","ask_price","bid_price","bid_amount"]
[1764995844172,0.41884,89658.0,89657.0,9.012e-05]
[1764995845271,0.41784,89658.0,89657.0,9.012e-05]
[1764995845667,0.41884,89658.0,89657.0,9.012e-05]
[1764995846868,0.41784,89658.0,89657.0,9.012e-05]
[1764995847072,0.41884,89658.0,89657.0,9.012e-05]
[1764995847468,0.41784,89658.0,89657.0,9.012e-05]
[1764995847773,0.41884,89658.0,89657.0,9.012e-05]
[1764995848075,0.41784,89658.0,89657.0,9.012e-05]
[1764995848264,0.41884,89658.0,89657.0,9.012e-05]
[1764995848465,0.41784,89658.0,89657.0,9.012e-05]
[1764995848668,0.41884,89658.0,89657.0,9.012e-05]
[1764995849271,0.41884,89658.0,89657.0,0.02760012]
[1764995849665,0.41884,89658.0,89657.0,0.05574012]
[1764995851066,0.41784,89658.0,89657.0,0.05574012]
[1764995851467,0.41684,89658.0,89657.0,0.05574012]
[1764995851773,0.41784,89658.0,89657.0,0.05574012]
[1764995870591,0.44467553,89658.0,89657.0,9.012e-05]
[1764995871291,0.44467553,89658.0,89657.0,0.02720012]
[1764995876896,0.44467553,89658.0,89657.0,0.05513012]
[1764995879890,0.44467517,89658.0,89657.0,0.05513012]
[1764995880588,0.41784,89658.0,89657.0,0.05513012]
[1764995897209,0.44467721,89658.0,89657.0,0.05513012]
[1764995898108,0.41784,89658.0,89657.0,0.05513012]
[1764995898710,0.44473202,89658.0,89657.0,0.05513012]
[1764995900009,0.44473198,89658.0,89657.0,0.05513012]
[1764995900608,0.41784,89658.0,89657.0,0.05513012]
[1764995901704,0.44473237,89658.0,89657.0,0.05513012]
[1764995907012,0.41784,89658.0,89657.0,0.05513012]
[1764995907314,0.44473363,89658.0,89657.0,0.05513012]
[1764995908214,0.44473385,89658.0,89657.0,0.05513012]
[1764995909714,0.41784,89658.0,89657.0,0.05513012]
[1764995909914,0.44473398,89658.0,89657.0,0.05513012]
[1764995914518,0.41784,89658.0,89657.0,0.05513012]
[1764995914816,0.44473406,89658.0,89657.0,0.05513012]
[1764995918926,0.44473406,89658.0,89657.0,0.02720012]
[1764995919218,0.44473406,89658.0,89650.0,0.00016729]
[1764995919219,0.0179923,89651.0,89650.0,0.00016729]
[1764995919423,0.4279923,89651.0,89650.0,0.00016729]
[1764995919725,0.45489689,89651.0,89650.0,0.00016729]
[1764995920125,0.45502231,89651.0,89650.0,0.00016729]
[1764995920920,0.45502231,89651.0,89650.0,0.00116729]
[1764995921317,0.42811772,89651.0,89650.0,0.00116729]
[1764995922526,0.42811772,89651.0,89650.0,0.05893729]
[1764995923530,0.51578271,89651.0,89650.0,0.05893729]
[1764995924332,0.42811772,89651.0,89650.0,0.05893729]
[1764995931938,0.42811772,89651.0,89650.0,0.00116729]
[1764995933436,0.00684,89641.0,89640.0,0.07202]
[1764995933632,0.41684,89641.0,89640.0,0.07202]
[1764995934537,0.41684,89641.0,89640.0,0.07602]
[1764995934736,0.41684,89641.0,89640.0,0.07702]
[1764995956865,0.4279935,89641.0,89640.0,0.07702]
[1764995969467,0.00012542,89651.0,89650.0,0.05586]
[1764995969768,0.02012542,89651.0,89650.0,0.05586]
[1764995969974,0.31012542,89651.0,89650.0,0.05586]
[1764995970165,0.31354542,89651.0,89650.0,0.05586]
[1764995970676,0.02012542,89651.0,89650.0,0.13620051]
[1764995970876,0.00012542,89651.0,89650.0,0.13620051]
[1764995971261,0.00012542,89651.0,89650.0,0.05686]
[1764995972570,0.00012542,89651.0,89650.0,0.05786]
[1764995972878,0.00012542,89651.0,89650.0,0.05986]
[1764995974473,0.00012542,89651.0,89650.0,0.05686]
[1764995974674,0.00012542,89651.0,89650.0,0.05986]
[1764995976077,0.00354542,89651.0,89650.0,0.05686]
[1764995976278,0.00012542,89651.0,89650.0,0.05986]
[1764995977666,0.00012542,89651.0,89650.0,0.05686]
[1764995977862,0.00012542,89651.0,89650.0,0.05986]
[1764995979075,0.00696542,89651.0,89650.0,0.0317]
[1764995979269,0.36696542,89651.0,89650.0,0.06162]
[1764995980875,0.36696542,89651.0,89650.0,0.05962]
[1764995981478,0.36696542,89651.0,89650.0,0.05862]
[1764995997596,0.36696542,89651.0,89650.0,0.07573]
[1764996001305,0.36354542,89651.0,89650.0,0.07573]
[1764996001604,0.38012542,89651.0,89650.0,0.07573]
[1764996001902,0.38696542,89651.0,89650.0,0.07573]
[1764996002293,0.18696542,89651.0,89650.0,0.07573]
[1764996003901,0.36696542,89651.0,89650.0,0.07573]
[1764996006995,0.36012542,89651.0,89650.0,0.07573]
[1764996007196,0.06003516,89680.0,89666.0,0.0658904]
[1764996007502,0.07206,89682.0,89681.0,0.05474]
[1764996008707,0.07306,89682.0,89681.0,0.05474]
[1764996010200,0.07406,89682.0,89681.0,0.05474]
[1764996011808,0.00016729,89690.0,89689.0,0.0658876]
[1764996012011,0.02757729,89690.0,89689.0,0.06830762]
[1764996012212,0.05398979,89690.0,89689.0,0.06830762]
[1764996013505,0.05398979,89690.0,89689.0,0.06930762]
[1764996014812,0.05398979,89690.0,89689.0,0.07230762]
[1764996015112,0.05398979,89690.0,89689.0,0.07130762]
[1764996015413,0.05398979,89690.0,89689.0,0.07230762]
[1764996016908,0.05398979,89690.0,89689.0,0.07130762]
[1764996018314,0.05398979,89690.0,89689.0,0.06830762]
[1764996018518,0.05398979,89690.0,89689.0,0.07030762]
[1764996021310,0.05398979,89690.0,89689.0,0.05916002]
[1764996024020,0.05398979,89690.0,89689.0,0.05716002]
[1764996024217,0.05398979,89690.0,89689.0,0.05816002]
[1764996024619,0.05398979,89690.0,89689.0,0.05716002]
[1764996024815,0.05398979,89690.0,89689.0,0.05816002]
[1764996044935,0.05398979,89690.0,89689.0,0.05716002]
[1764996045137,0.05398979,89690.0,89689.0,0.05816002]
[1764996045532,0.41398979,89690.0,89689.0,0.001]
[1764996045836,0.05485,89684.0,89682.0,0.0801272]
[1764996046034,0.05485,89680.0,89679.0,0.0801272]
[1764996046232,0.05485,89675.0,89674.0,0.1090372]
[1764996046428,0.48485,89675.0,89674.0,0.1090372]
[1764996046740,0.48485,89675.0,89674.0,0.1372372]
[1764996047135,0.48485,89675.0,89674.0,0.05711]
[1764996047735,0.48485,89675.0,89674.0,0.05811]
[1764996048140,0.0289373,89691.0,89674.0,0.001]
[1764996048338,0.0837873,89691.0,89690.0,0.02891]
[1764996048535,0.05485,89682.0,89681.0,0.22140169]
[1764996048738,0.05485,89675.0,89674.0,0.1382372]
[1764996049439,0.05485,89675.0,89674.0,0.05811]
[1764996049641,0.05485,89675.0,89674.0,0.1382372]
[1764996049946,0.05485,89675.0,89674.0,0.05811]
[1764996051142,0.05485,89675.0,89674.0,0.05711]
[1764996051343,0.05485,89675.0,89674.0,0.05811]
[1764996058545,0.0278,89675.0,89674.0,0.05811]
[1764996059345,0.02737,89680.0,89679.0,0.05562]
[1764996059545,0.07268,89691.0,89690.0,0.0667674]
[1764996060947,0.07368,89691.0,89690.0,0.0667674]
[1764996061551,0.07468,89691.0,89690.0,0.0667674]
[1764996063954,0.05626,89687.0,89686.0,0.0687578]
[1764996064250,0.41626,89687.0,89686.0,0.05761]
[1764996065054,0.41726,89687.0,89686.0,0.05761]
[1764996066158,0.05626,89682.0,89681.0,0.0687585]
[1764996066455,0.05626,89681.0,89680.0,0.08014365]
[1764996066654,0.44626,89681.0,89680.0,0.08014365]
[1764996067460,0.07291,89676.0,89675.0,0.0687593]
[1764996067759,0.40291,89676.0,89675.0,0.0687593]
[1764996069758,0.40291,89676.0,89675.0,0.0697593]
[1764996072161,0.40291,89676.0,89675.0,0.0410293]
[1764996072464,0.40291,89676.0,89675.0,0.0121493]
[1764996073155,0.40291,89676.0,89675.0,0.0410293]
[1764996079072,0.07291,89676.0,89675.0,0.0697593]
[1764996090975,0.05582,89680.0,89679.0,0.0111488]
[1764996091271,0.02718,89680.0,89679.0,0.43984882]
[1764996091473,0.07255,89688.0,89687.0,0.0674278]
[1764996091679,0.12255,89688.0,89687.0,0.06984782]
[1764996092472,0.12255,89688.0,89684.0,0.0802777]
[1764996092473,0.05582,89686.0,89684.0,0.0802777]
[1764996092675,0.07255,89684.0,89683.0,0.0802777]
[1764996092870,0.46255,89684.0,89683.0,0.0802777]
[1764996093379,0.07255,89680.0,89679.0,0.001]
[1764996093579,0.07255,89680.0,89679.0,0.03096002]
[1764996096080,0.07255,89680.0,89679.0,0.03196002]
[1764996097581,0.07255,89680.0,89679.0,0.05970002]
[1764996100184,0.07255,89680.0,89679.0,0.001]
[1764996100383,0.05582,89667.0,89666.0,0.0802879]
[1764996100582,0.05582,89664.0,89662.0,0.0802879]
[1764996100779,0.0669708,89663.0,89661.0,0.0802879]
[1764996100974,0.02718,89662.0,89661.0,0.0802879]
[1764996101186,0.43582,89662.0,89661.0,0.0802879]
[1764996101389,0.05582,89659.0,89658.0,0.1365679]
[1764996101590,0.38582,89659.0,89658.0,0.1365679]
[1764996102486,0.38582,89659.0,89658.0,0.05628]
[1764996107800,0.0669719,89654.0,89653.0,0.00016729]
[1764996108100,0.4469719,89654.0,89653.0,0.00016729]
[1764996109498,0.4469719,89654.0,89653.0,0.00116729]
[1764996110197,0.4469719,89654.0,89653.0,0.00016729]
[1764996115594,0.4469719,89654.0,89653.0,0.02964729]
[1764996121593,0.0111547,89632.0,89630.0,0.0802879]
[1764996121897,0.0111547,89632.0,89616.0,0.01742]
[1764996121898,0.05943,89625.0,89624.0,0.05658]
[1764996122099,0.05943,89625.0,89624.0,0.06796068]
[1764996122495,0.05943,89625.0,89624.0,0.02748]
[1764996122696,0.05943,89617.0,89616.0,0.05674729]
[1764996124199,0.05943,89617.0,89616.0,0.06778092]
[1764996125094,0.06043,89617.0,89616.0,0.07578092]
[1764996125295,0.06043,89617.0,89616.0,0.07778092]
[1764996125497,0.06043,89617.0,89616.0,0.02120092]
[1764996126214,0.48043,89617.0,89616.0,0.02120092]
[1764996126905,0.48043,89617.0,89616.0,0.04868092]
[1764996127305,0.48043,89617.0,89616.0,0.07778092]
[1764996127711,0.001,89617.0,89616.0,0.07778092]
[1764996128602,0.001,89617.0,89616.0,0.45778092]
[1764996130096,0.05959729,89633.0,89632.0,0.05658]
[1764996130298,0.10959729,89633.0,89632.0,0.05658]
[1764996130900,0.10959729,89633.0,89632.0,0.0677347]
[1764996131207,0.10959729,89633.0,89632.0,0.0697347]
[1764996131606,0.11059729,89633.0,89632.0,0.0757347]
[1764996132206,0.37059729,89633.0,89632.0,0.0757347]
[1764996134108,0.11059729,89633.0,89632.0,0.0757347]
[1764996138111,0.06059729,89633.0,89632.0,0.0757347]
[1764996138611,0.06059729,89633.0,89632.0,0.06458]
[1764996142510,0.06059729,89633.0,89632.0,0.082]
[1764996142909,0.03105729,89633.0,89632.0,0.082]
[1764996143218,0.00116729,89633.0,89632.0,0.082]
[1764996151415,0.06014729,89633.0,89632.0,0.082]
[1764996154227,0.06014729,89633.0,89625.0,0.01742]
[1764996154228,0.0692559,89622.0,89621.0,0.0802879]
[1764996154425,0.0692565,89617.0,89616.0,0.00016729]
[1764996154615,0.48587769,89617.0,89616.0,0.00016729]
[1764996155425,0.4592565,89617.0,89616.0,0.00016729]
[1764996155616,0.4592565,89617.0,89616.0,0.00216729]
[1764996155820,0.4622565,89617.0,89616.0,0.00216729]
[1764996156425,0.4612565,89617.0,89616.0,0.00216729]
[1764996157132,0.4622565,89617.0,89616.0,0.00016729]
[1764996158831,0.4602565,89617.0,89616.0,0.00016729]
[1764996159034,0.4632565,89617.0,89616.0,0.00016729]
[1764996177034,0.4632565,89617.0,89616.0,0.05657729]
[1764996178336,0.4622565,89617.0,89616.0,0.05657729]
[1764996178533,0.4602565,89617.0,89616.0,0.05757729]
[1764996178739,0.4632565,89617.0,89616.0,0.05757729]
[1764996180939,0.4632565,89617.0,89616.0,0.00116729]
[1764996183348,0.49062535,89617.0,89616.0,0.00116729]
[1764996184742,0.49062535,89617.0,89616.0,0.02878729]
[1764996191446,0.49062535,89617.0,89616.0,0.00116729]
[1764996199456,0.49062535,89617.0,89616.0,0.05625729]
[1764996199755,0.49062535,89617.0,89616.0,0.02878729]
[1764996200057,0.49062749,89617.0,89616.0,0.00116729]
[1764996200751,0.0685678,89607.0,89606.0,0.055369]
[1764996200953,0.4985678,89607.0,89606.0,0.055369]
[1764996201945,0.5005678,89607.0,89606.0,0.055369]
[1764996207553,0.5005678,89607.0,89606.0,0.000279]
[1764996207758,0.5005678,89607.0,89606.0,0.05778902]
[1764996208953,0.5005678,89607.0,89606.0,0.055369]
[1764996219170,0.48941,89607.0,89606.0,0.055369]
[1764996219573,0.48941,89607.0,89606.0,0.059639]
[1764996220772,0.48941,89607.0,89606.0,0.000279]
[1764996223771,0.49986,89607.0,89606.0,0.000279]
[1764996229778,0.0553,89602.0,89601.0,0.00011038]
[1764996230087,0.4753,89602.0,89601.0,0.00011038]
[1764996230787,0.4864584,89602.0,89601.0,0.00011038]
[1764996231575,0.0664594,89594.0,89593.0,0.07062369]
[1764996231778,0.4964594,89594.0,89593.0,0.05936]
[1764996232681,0.49657237,89594.0,89593.0,0.06036]
[1764996232984,0.48641297,89594.0,89593.0,0.07555322]
[1764996241382,0.00111297,89594.0,89593.0,0.07555322]
[1764996242290,0.06752479,89610.0,89609.0,0.05726]
[1764996242485,0.51472109,89610.0,89609.0,0.05726]
[1764996242680,0.09472109,89610.0,89609.0,0.05726]
[1764996242882,0.05636739,89610.0,89609.0,0.05726]
[1764996243693,0.02824739,89610.0,89609.0,0.05726]
[1764996243892,0.0673563,89619.0,89618.0,0.05726]
[1764996244094,0.4173563,89619.0,89618.0,0.05726]
[1764996245183,0.4193563,89619.0,89618.0,0.05826]
[1764996250292,0.4193563,89619.0,89618.0,0.001]
[1764996272403,0.44658503,89619.0,89618.0,0.001]
[1764996276002,0.44658503,89619.0,89618.0,0.05782]
[1764996277010,0.43542873,89619.0,89618.0,0.05782]
[1764996282414,0.002,89619.0,89618.0,0.05782]
[1764996283205,0.02944,89619.0,89618.0,0.05782]
[1764996289216,0.05753,89619.0,89618.0,0.05782]
[1764996300328,0.45798,89619.0,89618.0,0.001]
[1764996300530,0.48505328,89619.0,89618.0,0.001]
[1764996303423,0.47460328,89619.0,89618.0,0.05702]
[1764996303628,0.47460328,89619.0,89618.0,0.05944002]
[1764996305034,0.44753,89619.0,89618.0,0.05944002]
[1764996305935,0.21753,89619.0,89618.0,0.05944002]
[1764996306934,0.002,89619.0,89618.0,0.05944002]
[1764996307533,0.000721,89619.0,89618.0,0.05944002]
[1764996314047,0.059321,89619.0,89618.0,0.05944002]
[1764996323450,0.059321,89619.0,89618.0,0.05702]
[1764996323641,0.059321,89619.0,89618.0,0.001]
[1764996323642,0.429771,89619.0,89618.0,0.001]
[1764996325347,0.429771,89619.0,89618.0,0.02854]
[1764996325652,0.429771,89619.0,89618.0,0.05702]
[1764996326151,0.419321,89619.0,89618.0,0.05702]
[1764996329150,0.000721,89619.0,89618.0,0.05702]
[1764996329953,0.029001,89619.0,89618.0,0.05702]
[1764996331245,0.000721,89619.0,89618.0,0.05702]
[1764996333555,0.00016739,89627.0,89626.0,0.05629]
[1764996333755,0.00016739,89627.0,89626.0,0.05871002]
[1764996334050,0.0672839,89638.0,89637.0,0.05629]
[1764996334258,0.17613,89638.0,89637.0,0.05629]
[1764996334453,0.05613,89644.0,89643.0,0.05629]
[1764996334657,0.40613,89644.0,89643.0,0.05629]
[1764996334957,0.08613,89644.0,89643.0,0.05629]
[1764996335749,0.031,89644.0,89643.0,0.05629]
[1764996336250,0.03,89644.0,89643.0,0.05629]
[1764996336458,0.031,89644.0,89643.0,0.05629]
[1764996337954,0.03,89644.0,89643.0,0.05929]
[1764996338454,0.03,89644.0,89643.0,0.05629]
[1764996338758,0.03,89644.0,89643.0,0.05929]
[1764996339158,0.03,89644.0,89643.0,0.06029]
[1764996340066,0.05640888,89646.0,89645.0,0.05629]
[1764996340267,0.14640888,89646.0,89645.0,0.05871002]
[1764996340870,0.05640888,89646.0,89645.0,0.05871002]
[1764996349076,0.05740888,89646.0,89645.0,0.05871002]
[1764996349878,0.43740888,89646.0,89645.0,0.05871002]
[1764996350078,0.43740888,89646.0,89645.0,0.03013002]
[1764996350380,0.43740888,89646.0,89645.0,0.05826002]
[1764996351680,0.43640888,89646.0,89645.0,0.05826002]
[1764996351876,0.43740888,89646.0,89645.0,0.05826002]
[1764996353881,0.43640888,89646.0,89645.0,0.05826002]
[1764996354080,0.43740888,89646.0,89645.0,0.05826002]
[1764996358584,0.05740888,89646.0,89645.0,0.05826002]
[1764996358777,0.18740888,89646.0,89645.0,0.05826002]
[1764996364384,0.00127888,89646.0,89645.0,0.05826002]
[1764996364589,0.00127888,89646.0,89645.0,0.46826002]
[1764996365791,0.00127888,89646.0,89645.0,0.46926002]
[1764996365992,0.00027888,89646.0,89645.0,0.46926002]
[1764996366193,0.00127888,89646.0,89645.0,0.46926002]
[1764996366589,0.00027888,89646.0,89645.0,0.46926002]
[1764996366791,0.05619739,89652.0,89651.0,0.0565]
[1764996366991,0.05619739,89652.0,89651.0,0.05892002]
[1764996368393,0.05619739,89652.0,89651.0,0.07012345]
[1764996369093,0.05719739,89652.0,89651.0,0.07012345]
[1764996369594,0.05619739,89652.0,89651.0,0.07012345]
[1764996369796,0.05719739,89652.0,89651.0,0.07012345]
[1764996371892,0.05619739,89652.0,89651.0,0.07012345]
[1764996372092,0.05719739,89652.0,89651.0,0.07012345]
[1764996372693,0.05619739,89652.0,89651.0,0.07012345]
[1764996372896,0.05719739,89652.0,89651.0,0.07012345]
[1764996375093,0.05619739,89652.0,89651.0,0.07012345]
[1764996375294,0.05719739,89652.0,89651.0,0.07012345]
[1764996376904,0.05619739,89652.0,89651.0,0.07012345]
[1764996377088,0.05719739,89652.0,89651.0,0.07012345]
[1764996378395,0.05619739,89652.0,89651.0,0.07012345]
[1764996378699,0.05719739,89652.0,89651.0,0.07012345]
[1764996382600,0.05619739,89652.0,89651.0,0.07012345]
[1764996382806,0.00016739,89652.0,89651.0,0.07012345]
[1764996383103,0.00016739,89652.0,89651.0,0.15041073]
[1764996383299,0.00016739,89652.0,89651.0,0.07012345]
[1764996383704,0.02842,89653.0,89652.0,0.07344]
[1764996384103,0.05603,89653.0,89652.0,0.07344]
[1764996384903,0.05603,89653.0,89652.0,0.0845922]
[1764996385504,0.00016739,89661.0,89652.0,0.07344]
[1764996385806,0.48619739,89661.0,89660.0,0.07007122]
[1764996387610,0.48819739,89661.0,89660.0,0.07007122]
[1764996388209,0.48619739,89661.0,89660.0,0.07007122]
[1764996388509,0.48819739,89661.0,89660.0,0.07007122]
[1764996390511,0.32819739,89661.0,89660.0,0.07007122]
[1764996390907,0.06002583,89687.0,89660.0,0.48007122]
[1764996391106,0.05728,89680.0,89679.0,0.07318]
[1764996391316,0.46491709,89680.0,89679.0,0.05624]
[1764996392121,0.4384287,89680.0,89679.0,0.05624]
[1764996392413,0.4414287,89680.0,89679.0,0.05624]
[1764996393921,0.4424287,89680.0,89679.0,0.05624]
[1764996396722,0.0684293,89675.0,89674.0,0.05624]
[1764996396922,0.4784293,89675.0,89674.0,0.05624]
[1764996398227,0.4794293,89675.0,89674.0,0.05624]
[1764996399629,0.4804293,89675.0,89674.0,0.05624]
[1764996420344,0.50646774,89675.0,89674.0,0.05624]
[1764996421240,0.4804293,89675.0,89674.0,0.05624]
[1764996421749,0.4804293,89675.0,89671.0,0.00016729]
[1764996421750,0.05663,89672.0,89671.0,0.00016729]
[1764996421943,0.48663,89672.0,89671.0,0.00016729]
[1764996422844,0.48763,89672.0,89671.0,0.00016729]
[1764996423544,0.48763,89672.0,89671.0,0.00258731]
[1764996423849,0.48863,89672.0,89671.0,0.00016729]
[1764996424545,0.48763,89672.0,89671.0,0.00016729]
[1764996424745,0.48963,89672.0,89671.0,0.00016729]
[1764996428152,0.48763,89672.0,89671.0,0.00016729]
[1764996428454,0.48963,89672.0,89671.0,0.00016729]
[1764996431050,0.48863,89672.0,89671.0,0.00016729]
[1764996431256,0.48963,89672.0,89671.0,0.00258731]
[1764996431856,0.48963,89672.0,89671.0,0.00016729]
[1764996432057,0.48963,89672.0,89671.0,0.00258731]
[1764996432260,0.48963,89672.0,89671.0,0.00016729]
[1764996432453,0.48963,89672.0,89671.0,0.00258731]
[1764996433959,0.48963,89672.0,89671.0,0.00016729]
[1764996435060,0.48963,89672.0,89671.0,0.00258731]
[1764996436259,0.48963,89672.0,89671.0,0.00016729]
[1764996437160,0.48963,89672.0,89671.0,0.03008729]
[1764996443967,0.48963,89672.0,89671.0,0.00016729]
[1764996447965,0.50109,89672.0,89671.0,0.00016729]
[1764996448671,0.52707143,89672.0,89671.0,0.00016729]
[1764996449358,0.52507143,89672.0,89671.0,0.00016729]
[1764996449562,0.52707143,89672.0,89671.0,0.00016729]
[1764996450268,0.52607143,89672.0,89671.0,0.00016729]
[1764996450468,0.52507143,89672.0,89671.0,0.00016729]
[1764996450669,0.52707143,89672.0,89671.0,0.00016729]
[1764996451375,0.05602,89660.0,89659.0,0.02758]
[1764996451569,0.0671719,89654.0,89653.0,0.13677959]
[1764996451771,0.3671719,89654.0,89653.0,0.13677959]
[1764996452274,0.3671719,89654.0,89653.0,0.05656]
[1764996452275,0.35602,89654.0,89653.0,0.05656]
[1764996452670,0.35602,89654.0,89653.0,0.05956]
[1764996454277,0.35602,89654.0,89653.0,0.06056]
[1764996455574,0.35602,89654.0,89653.0,0.05756]
[1764996455874,0.35602,89654.0,89653.0,0.05856]
[1764996456778,0.35602,89654.0,89653.0,0.05756]
[1764996462992,0.35602,89654.0,89653.0,0.05656]
[1764996463184,0.35602,89654.0,89653.0,0.05756]
[1764996465294,0.35602,89654.0,89653.0,0.05656]
[1764996466588,0.35602,89654.0,89652.0,0.08021959]
[1764996466589,0.05602,89653.0,89652.0,0.08021959]
[1764996466785,0.05602,89652.0,89651.0,0.11900302]
[1764996466989,0.05602,89652.0,89651.0,0.10779959]
[1764996466990,0.41602,89652.0,89651.0,0.10779959]
[1764996467189,0.41602,89652.0,89651.0,0.13677959]
[1764996467393,0.41602,89652.0,89651.0,0.14787356]
[1764996468794,0.41702,89652.0,89651.0,0.14787356]
[1764996470300,0.41702,89652.0,89651.0,0.06765397]
[1764996470301,0.12702,89652.0,89651.0,0.06765397]
[1764996471688,0.12602,89652.0,89651.0,0.06765397]
[1764996474505,0.12602,89652.0,89651.0,0.14787356]
[1764996474705,0.12602,89652.0,89651.0,0.06765397]
[1764996475501,0.12602,89652.0,89651.0,0.06865397]
[1764996476908,0.41602,89652.0,89651.0,0.14890243]
[1764996477106,0.41602,89652.0,89651.0,0.06865397]
[1764996477507,0.41602,89652.0,89651.0,0.06765397]
[1764996477707,0.41602,89652.0,89651.0,0.06865397]
[1764996478108,0.41602,89652.0,89651.0,0.06765397]
[1764996478802,0.41602,89652.0,89651.0,0.06865397]
[1764996480296,0.41602,89652.0,89651.0,0.03867397]
[1764996480500,0.41602,89652.0,89651.0,0.03967397]
[1764996480700,0.41602,89652.0,89651.0,0.06924397]
[1764996481011,0.41602,89652.0,89651.0,0.06824397]
[1764996488513,0.41602,89652.0,89651.0,0.06924397]
[1764996488915,0.41602,89652.0,89651.0,0.01209397]
[1764996489212,0.42781,89652.0,89651.0,0.001]
[1764996489607,0.42781,89652.0,89651.0,0.01207676]
[1764996490014,0.42781,89652.0,89651.0,0.01107676]
[1764996490218,0.05748,89649.0,89648.0,0.0299]
[1764996490519,0.44748,89649.0,89648.0,0.0299]
[1764996491113,0.44748,89649.0,89648.0,0.0408765]
[1764996491321,0.44848,89649.0,89648.0,0.0408765]
[1764996495524,0.44848,89649.0,89648.0,0.0704465]
[1764996503723,0.44848,89649.0,89648.0,0.0408765]
[1764996506326,0.44848,89649.0,89648.0,0.0704465]
[1764996512829,0.44748,89649.0,89648.0,0.0704465]
[1764996516133,0.44748,89649.0,89648.0,0.15075279]
[1764996517626,0.44748,89649.0,89648.0,0.08030629]
[1764996517826,0.0800727,89648.0,89647.0,0.08030629]
[1764996518033,0.5100727,89648.0,89647.0,0.08030629]
[1764996518235,0.05738,89646.0,89645.0,0.00016729]
[1764996518436,0.47738,89646.0,89645.0,0.00258731]
[1764996518635,0.47738,89646.0,89645.0,0.0140359]
[1764996518830,0.47738,89646.0,89645.0,0.01161588]
[1764996519736,0.47838,89646.0,89645.0,0.01161588]
[1764996521731,0.47838,89646.0,89645.0,0.04049588]
[1764996522132,0.47838,89646.0,89645.0,0.06834588]
[1764996523634,0.47738,89646.0,89645.0,0.06834588]
[1764996523939,0.47838,89646.0,89645.0,0.06834588]
[1764996542842,0.19838,89646.0,89645.0,0.06834588]
[1764996544348,0.19738,89646.0,89645.0,0.06834588]
[1764996550347,0.40738,89646.0,89645.0,0.06834588]
[1764996556956,0.05738,89646.0,89645.0,0.06834588]
[1764996557260,0.11738,89646.0,89645.0,0.06834588]
[1764996557761,0.33738,89646.0,89645.0,0.06834588]
[1764996564865,0.05738,89646.0,89645.0,0.06834588]
[1764996567667,0.43738,89646.0,89645.0,0.06834588]
[1764996568664,0.44934,89646.0,89645.0,0.01161588]
[1764996569467,0.44934,89646.0,89645.0,0.03915588]
[1764996569669,0.43738,89646.0,89645.0,0.03915588]
[1764996570467,0.43738,89646.0,89645.0,0.06734588]
[1764996572776,0.14738,89646.0,89645.0,0.06734588]
[1764996574364,0.05684729,89662.0,89661.0,0.05766]
[1764996574578,0.08684729,89662.0,89661.0,0.05766]
[1764996575469,0.08784729,89662.0,89661.0,0.05766]
[1764996576386,0.08784729,89662.0,89661.0,0.07465]
[1764996576573,0.32784729,89662.0,89661.0,0.15497253]
[1764996576770,0.32784729,89662.0,89661.0,0.07465]
[1764996577474,0.32684729,89662.0,89661.0,0.07465]
[1764996581877,0.00016729,89662.0,89661.0,0.07465]
[1764996582583,0.0111483,89684.0,89664.0,0.01699]
[1764996582781,0.05668,89675.0,89674.0,0.22197733]
[1764996582979,0.05668,89675.0,89674.0,0.05766]
[1764996583175,0.32668,89675.0,89674.0,0.05766]
[1764996584482,0.32868,89675.0,89674.0,0.05766]
[1764996585186,0.32968,89675.0,89674.0,0.05766]
[1764996588980,0.05968,89675.0,89674.0,0.05766]
[1764996591490,0.003,89675.0,89674.0,0.05766]
[1764996591788,0.0315,89675.0,89674.0,0.05766]
[1764996591991,0.05684729,89683.0,89682.0,0.0688084]
[1764996592291,0.00016729,89683.0,89682.0,0.0688084]
[1764996592991,0.02866729,89683.0,89682.0,0.0688084]
[1764996593195,0.02966729,89683.0,89682.0,0.0688084]
[1764996593581,0.06084729,89683.0,89682.0,0.0688084]
[1764996597479,0.06084729,89683.0,89682.0,0.0864984]
[1764996604196,0.00416729,89683.0,89682.0,0.0864984]
[1764996604393,0.03164729,89683.0,89682.0,0.0864984]
[1764996604897,0.00416729,89683.0,89682.0,0.0864984]
[1764996605698,0.03164729,89683.0,89682.0,0.0864984]
[1764996607101,0.03164729,89683.0,89682.0,0.4764984]
[1764996607295,0.00416729,89683.0,89682.0,0.4764984]
[1764996607598,0.03164729,89683.0,89682.0,0.4764984]
[1764996614302,0.03164729,89683.0,89682.0,0.2764984]
[1764996615300,0.03164729,89683.0,89682.0,0.35663528]
[1764996615501,0.06085729,89683.0,89682.0,0.35663528]
[1764996615701,0.06085729,89683.0,89682.0,0.16663528]
[1764996615901,0.06085729,89683.0,89682.0,0.68355528]
[1764996617396,0.06085729,89683.0,89682.0,0.6034184]
[1764996619302,0.06085729,89683.0,89682.0,0.0864984]
[1764996620307,0.00416729,89683.0,89682.0,0.0864984]
[1764996622602,0.00416729,89683.0,89682.0,0.4864984]
[1764996623708,0.00116729,89683.0,89682.0,0.4864984]
[1764996623907,0.05669,89698.0,89697.0,0.0851065]
[1764996624109,0.22669,89698.0,89697.0,0.0851065]
[1764996624700,0.05669,89698.0,89697.0,0.0851065]
[1764996625910,0.05669,89698.0,89697.0,0.0861065]
[1764996626502,0.05669,89698.0,89697.0,0.09729483]
[1764996627310,0.05669,89698.0,89697.0,0.08614833]
[1764996629512,0.05669,89698.0,89697.0,0.08514833]
[1764996629713,0.05669,89698.0,89697.0,0.08614833]
[1764996629908,0.02748,89698.0,89697.0,0.08614833]
[1764996630113,0.05653729,89706.0,89705.0,0.0565]
[1764996630307,0.05653729,89706.0,89705.0,0.05892002]
[1764996631503,0.00016729,89706.0,89705.0,0.05892002]
[1764996631714,0.0675134,89723.0,89722.0,0.0565]
[1764996631912,0.50324261,89723.0,89722.0,0.0565]
[1764996632314,0.49209921,89723.0,89722.0,0.0565]
[1764996633312,0.46637,89723.0,89722.0,0.0565]
[1764996633514,0.05637,89718.0,89717.0,0.067644]
[1764996633716,0.48637,89718.0,89717.0,0.067644]
[1764996634918,0.48837,89718.0,89717.0,0.067644]
[1764996636215,0.48837,89718.0,89717.0,0.0565]
[1764996636426,0.48937,89718.0,89717.0,0.0565]
[1764996638116,0.48937,89718.0,89717.0,0.0285]